bitfinex/quotes_BTCUSD_20251231
["timestamp","ask_amount","ask_price","bid_price","bid_amount"]
[1767157766555,0.01130326,88470.0,88463.0,4.007e-05]
[1767157767587,0.01130313,88471.0,88463.0,4.007e-05]
[1767157769006,0.13659,88473.0,88463.0,4.007e-05]
[1767157769294,0.05651039,88480.0,88473.0,0.000549]
[1767157769525,0.01130198,88480.0,88473.0,0.000549]
[1767157769654,0.01130198,88480.0,88465.0,0.13996]
[1767157769857,0.01130211,88479.0,88465.0,0.13996]
[1767157770903,0.01141436,88481.0,88465.0,0.13996]
[1767157771267,0.01130198,88480.0,88465.0,0.13996]
[1767157772098,0.01130211,88479.0,88465.0,0.13996]
[1767157772298,0.01130198,88480.0,88465.0,0.13996]
[1767157773286,0.4260994,88480.0,88465.0,0.13996]
[1767157775129,0.01130211,88479.0,88465.0,0.13996]
[1767157778221,0.01130198,88480.0,88465.0,0.13996]
[1767157781887,0.0001125,88481.0,88465.0,0.1512639]
[1767157782067,0.01141436,88481.0,88480.0,0.000549]
[1767157782272,0.18367077,88486.0,88481.0,0.0004375]
[1767157782486,0.17236955,88486.0,88481.0,0.0004375]
[1767157782660,0.14973122,88486.0,88481.0,0.0004375]
[1767157782861,0.14973122,88486.0,88477.0,0.01132]
[1767157783381,0.01130135,88485.0,88477.0,0.01132]
[1767157783593,0.14973122,88486.0,88477.0,0.01132]
[1767157786538,0.13843,88486.0,88477.0,0.01132]
[1767157786885,0.14973122,88486.0,88477.0,0.01132]
[1767157787355,0.13843,88486.0,88477.0,0.01132]
[1767157787535,0.14973122,88486.0,88477.0,0.01132]
[1767157787854,0.01130135,88485.0,88477.0,0.01132]
[1767157788017,0.14973122,88486.0,88477.0,0.01132]
[1767157788452,0.13843,88486.0,88477.0,0.01132]
[1767157788674,0.14973122,88486.0,88477.0,0.01132]
[1767157789257,0.01130135,88485.0,88477.0,0.01132]
[1767157790882,0.14973122,88486.0,88477.0,0.01132]
[1767157793488,0.01130135,88485.0,88477.0,0.01132]
[1767157794401,0.01130147,88484.0,88477.0,0.01132]
[1767157794899,0.01130135,88485.0,88477.0,0.01132]
[1767157796854,0.01130147,88484.0,88477.0,0.01132]
[1767157797447,0.01130135,88485.0,88477.0,0.01132]
[1767157797790,0.01130147,88484.0,88477.0,0.01132]
[1767157797991,0.01130135,88485.0,88477.0,0.01132]
[1767157798194,0.14973122,88486.0,88477.0,0.01132]
[1767157799024,0.01130135,88485.0,88477.0,0.01132]
[1767157801635,0.14973122,88486.0,88477.0,0.01132]
[1767157801636,0.13843,88486.0,88477.0,0.01132]
[1767157801835,0.14973122,88486.0,88477.0,0.01132]
[1767157802076,0.01130122,88486.0,88477.0,0.01132]
[1767157802218,0.04535298,88487.0,88477.0,0.01132]
[1767157803425,0.01130122,88486.0,88477.0,0.01132]
[1767157804364,0.01130135,88485.0,88477.0,0.01132]
[1767157804574,0.01130122,88486.0,88477.0,0.01132]
[1767157807982,0.04535298,88487.0,88477.0,0.01132]
[1767157807983,0.03405189,88487.0,88477.0,0.01132]
[1767157810139,0.04535298,88487.0,88477.0,0.01132]
[1767157813076,0.01130122,88486.0,88477.0,0.01132]
[1767157814065,0.01130135,88485.0,88477.0,0.01132]
[1767157814497,0.01130147,88484.0,88477.0,0.01132]
[1767157814904,0.01130135,88485.0,88477.0,0.01132]
[1767157815066,0.01130147,88484.0,88477.0,0.01132]
[1767157815595,0.01130173,88482.0,88477.0,0.01132]
[1767157815794,0.01130186,88481.0,88477.0,0.011207]
[1767157816007,0.05656,88480.0,88447.0,0.07074837]
[1767157816204,0.0565387,88435.0,88416.0,0.1370925]
[1767157816557,0.01130735,88438.0,88430.0,2.5e-06]
[1767157816558,0.19580125,88431.0,88430.0,2.5e-06]
[1767157816700,0.15067787,88430.0,88425.0,0.01132]
[1767157816917,0.0113085,88429.0,88425.0,0.01132]
[1767157817115,0.01130837,88430.0,88425.0,0.01132]
[1767157817316,0.0113085,88429.0,88425.0,0.01132]
[1767157817695,0.01138446,88430.0,88425.0,0.01132]
[1767157818096,0.0113085,88429.0,88425.0,0.01132]
[1767157819110,0.0678501,88431.0,88429.0,0.000553]
[1767157819332,0.0113085,88429.0,88425.0,0.01132]
[1767157819506,0.01130837,88430.0,88425.0,0.01142653]
[1767157819703,0.0113085,88429.0,88425.0,0.01142653]
[1767157819901,0.01130863,88428.0,88425.0,0.01142653]
[1767157820104,0.06785189,88428.0,88425.0,0.01142653]
[1767157820321,0.01130863,88428.0,88425.0,0.01142653]
[1767157820500,0.0113085,88429.0,88425.0,0.01142653]
[1767157820701,0.01130863,88428.0,88425.0,0.01142653]
[1767157820933,0.0113085,88429.0,88425.0,0.01142653]
[1767157821167,0.01130863,88428.0,88425.0,0.01142653]
[1767157822558,0.06785186,88428.0,88425.0,0.01088053]
[1767157822781,0.06785186,88428.0,88422.0,0.01132]
[1767157822782,0.05654563,88425.0,88422.0,0.01132]
[1767157822958,0.05654563,88425.0,88416.0,0.0001125]
[1767157823161,0.05654563,88425.0,88419.0,0.01132]
[1767157824247,0.05654563,88425.0,88416.0,0.0001125]
[1767157824248,0.13926,88424.0,88423.0,2.5e-06]
[1767157824876,0.13926,88424.0,88416.0,0.0001125]
[1767157824877,0.01130978,88419.0,88416.0,0.0001125]
[1767157825072,0.01130978,88419.0,88416.0,0.00018859]
[1767157825433,0.01130965,88420.0,88416.0,0.00018859]
[1767157825839,0.01130978,88419.0,88416.0,0.00018859]
[1767157826649,0.0113094,88422.0,88416.0,0.00018859]
[1767157826849,0.01130953,88421.0,88416.0,0.00018859]
[1767157827406,0.1505694,88422.0,88416.0,0.00018859]
[1767157828106,0.01130953,88421.0,88416.0,0.00018859]
[1767157828519,0.1505694,88422.0,88416.0,0.00018859]
[1767157829276,0.13926,88422.0,88416.0,0.00018859]
[1767157829481,0.1505694,88422.0,88416.0,0.00018859]
[1767157832756,0.13926,88422.0,88416.0,0.00018859]
[1767157832913,0.1500204,88422.0,88416.0,0.00018859]
[1767157833319,0.01130953,88421.0,88416.0,0.00018859]
[1767157833525,0.01130965,88420.0,88416.0,0.00018859]
[1767157833763,0.13926,88418.0,88416.0,0.00018859]
[1767157833972,0.13926,88418.0,88415.0,0.01132]
[1767157833973,0.15056991,88418.0,88415.0,0.01132]
[1767157834175,0.15056991,88418.0,88415.0,0.01141242]
[1767157834505,0.13926,88418.0,88415.0,0.01141242]
[1767157834788,0.01130953,88421.0,88415.0,0.01141242]
[1767157834994,0.0113094,88422.0,88415.0,0.01141242]
[1767157835329,0.01130901,88425.0,88415.0,0.01141242]
[1767157835547,0.01130889,88426.0,88422.0,0.00055]
[1767157835760,0.01130889,88426.0,88415.0,0.01141242]
[1767157835976,0.0113085,88429.0,88415.0,0.14645242]
[1767157836197,0.01130837,88430.0,88415.0,0.14645242]
[1767157836406,0.01130837,88430.0,88429.0,0.00055]
[1767157836776,0.01130837,88430.0,88421.0,0.13504]
[1767157838517,0.0113085,88429.0,88421.0,0.13504]
[1767157838718,0.0113085,88429.0,88416.0,0.13504]
[1767157842521,0.42648775,88430.0,88416.0,0.13504]
[1767157843337,0.02432019,88429.0,88416.0,0.13504]
[1767157843933,0.42648775,88430.0,88416.0,0.13504]
[1767157844495,0.0356586,88429.0,88416.0,0.13504]
[1767157845030,0.0243501,88429.0,88416.0,0.13504]
[1767157845466,0.05491235,88428.0,88416.0,0.13504]
[1767157845668,0.0243501,88427.0,88416.0,0.13504]
[1767157845884,0.0243501,88426.0,88416.0,0.13504]
[1767157846081,0.0243501,88425.0,88416.0,0.13504]
[1767157846286,0.0243501,88424.0,88416.0,0.13504]
[1767157846443,0.0243501,88423.0,88416.0,0.13504]
[1767157846642,0.0238001,88422.0,88416.0,0.13269]
[1767157846841,0.03056225,88428.0,88416.0,0.13269]
[1767157852685,0.01130876,88427.0,88416.0,0.13269]
[1767157853016,0.01130863,88428.0,88416.0,0.13269]
[1767157856844,0.0113085,88429.0,88416.0,0.13269]
[1767157858584,0.02442908,88428.0,88416.0,0.13269]
[1767157858797,0.02442908,88427.0,88416.0,0.13269]
[1767157859001,0.02442908,88426.0,88416.0,0.13269]
[1767157859204,0.02442908,88425.0,88416.0,0.13269]
[1767157859522,0.02442908,88424.0,88416.0,0.13269]
[1767157859821,0.02442908,88423.0,88416.0,0.13269]
[1767157860022,0.02442908,88422.0,88416.0,0.13269]
[1767157860223,0.0113085,88429.0,88416.0,0.13269]
[1767157860376,0.02442948,88428.0,88416.0,0.13269]
[1767157860824,0.02442948,88427.0,88416.0,0.13269]
[1767157861027,0.02442948,88426.0,88416.0,0.13269]
[1767157861338,0.02442948,88425.0,88416.0,0.13269]
[1767157861638,0.02442948,88424.0,88416.0,0.13269]
[1767157861852,0.42648775,88430.0,88416.0,0.13269]
[1767157862054,0.0244303,88429.0,88416.0,0.13269]
[1767157862604,0.01130863,88428.0,88416.0,0.13269]
[1767157862798,0.00882595,88425.0,88415.0,0.01141242]
[1767157863039,0.03325625,88425.0,88415.0,0.01141242]
[1767157863404,0.01130914,88424.0,88415.0,0.01141242]
[1767157863645,0.01130927,88423.0,88415.0,0.01141242]
[1767157864384,0.01130914,88424.0,88415.0,0.01141242]
[1767157865732,0.48303303,88426.0,88415.0,0.01141242]
[1767157865938,0.41517938,88426.0,88415.0,0.01141242]
[1767157866356,0.14381,88428.0,88415.0,0.01141242]
[1767157866556,0.02443831,88427.0,88415.0,0.01141242]
[1767157867157,0.02443831,88427.0,88417.0,0.0360787]
[1767157867338,0.41517938,88430.0,88417.0,0.1773487]
[1767157867550,0.024438,88429.0,88417.0,0.1773487]
[1767157869915,0.024438,88429.0,88417.0,0.14127]
[1767157870511,0.41517938,88430.0,88417.0,0.14127]
[1767157874791,0.01130825,88431.0,88417.0,0.14127]
[1767157875202,0.02443786,88432.0,88417.0,0.14127]
[1767157876590,1.31e-06,88433.0,88432.0,0.000549]
[1767157876791,3.81e-06,88440.0,88435.0,0.01130774]
[1767157876985,3.81e-06,88440.0,88438.0,0.13801]
[1767157877213,3.81e-06,88440.0,88439.0,0.14933]
[1767157878642,0.0001125,88447.0,88439.0,0.14933]
[1767157881922,0.0001125,88447.0,88439.0,0.16063722]
[1767157882148,0.0001125,88447.0,88440.0,0.0113071]
[1767157882671,0.0001125,88447.0,88442.0,0.14931684]
[1767157882975,5e-07,88447.0,88444.0,0.06783952]
[1767157883192,5e-07,88447.0,88444.0,0.20584952]
[1767157883377,5e-07,88447.0,88445.0,0.13801]
[1767157883578,5e-07,88447.0,88446.0,0.01132]
[1767157889376,5e-07,88447.0,88446.0,0.011208]
[1767157900646,5e-07,88447.0,88446.0,0.01132]
[1767157902051,0.1402605,88447.0,88446.0,0.01132]
[1767157902263,0.1402605,88447.0,88430.0,0.0002]
[1767157902264,0.14026,88441.0,88430.0,0.0002]
[1767157902490,0.14026,88441.0,88431.0,0.01132]
[1767157902491,0.15156697,88441.0,88431.0,0.01132]
[1767157902692,0.14026,88437.0,88431.0,0.01077]
[1767157905036,0.01130671,88443.0,88431.0,0.01077]
[1767157905237,0.14026,88442.0,88431.0,0.01077]
[1767157905437,0.0113062,88447.0,88432.0,0.1740887]
[1767157905643,0.01130633,88446.0,88432.0,0.1740887]
[1767157906230,0.01130646,88445.0,88432.0,0.1740887]
[1767157906643,0.15006633,88446.0,88432.0,0.1740887]
[1767157907705,0.01130646,88445.0,88432.0,0.1740887]
[1767157908528,0.01130646,88445.0,88432.0,0.0360787]
[1767157909150,0.15006633,88446.0,88432.0,0.0360787]
[1767157910457,0.01130646,88445.0,88432.0,0.0360787]
[1767157911436,0.0002,88450.0,88433.0,0.14429]
[1767157911643,0.0002,88450.0,88445.0,0.001099]
[1767157912058,0.0002,88450.0,88442.0,0.01132]
[1767157947945,0.0002,88450.0,88442.0,0.02262684]
[1767157948820,0.0002,88450.0,88442.0,0.01132]
[1767157962943,0.0002,88450.0,88442.0,0.02262684]
[1767157963141,0.0002,88450.0,88442.0,0.01132]
[1767157963344,0.0002,88450.0,88442.0,0.02262684]
[1767157963734,0.0002,88450.0,88442.0,0.01132]
[1767157963939,0.0002,88450.0,88442.0,0.02262684]
[1767157964547,0.0002,88450.0,88442.0,0.01132]
[1767157988195,0.0002,88450.0,88442.0,0.151]
[1767157988401,0.04699757,88459.0,88442.0,0.151]
[1767157988625,0.04710408,88459.0,88444.0,0.0002]
[1767157988803,0.02445948,88458.0,88444.0,0.0002]
[1767157989512,0.16444948,88458.0,88444.0,0.0002]
[1767157989662,0.13999,88458.0,88444.0,0.0002]
[1767157991647,0.1512948,88458.0,88444.0,0.0002]
[1767157991942,0.01130492,88457.0,88444.0,0.0002]
[1767157992161,0.15129492,88457.0,88444.0,0.0002]
[1767157992371,0.15129505,88456.0,88444.0,0.0002]
[1767157998013,0.15047518,88455.0,88444.0,0.0002]
[1767157998400,0.13917,88455.0,88444.0,0.0002]
[1767158009768,0.15047518,88455.0,88444.0,0.0002]
[1767158009921,0.13917,88455.0,88444.0,0.0002]
[1767158011053,0.15047518,88455.0,88444.0,0.0002]
[1767158012483,0.13917,88455.0,88444.0,0.0002]
[1767158016504,0.15047518,88455.0,88444.0,0.0002]
[1767158017913,0.13917,88455.0,88444.0,0.0002]
[1767158018255,0.15047518,88455.0,88444.0,0.0002]
[1767158020795,0.13917,88455.0,88444.0,0.0002]
[1767158022473,0.05652655,88454.0,88444.0,0.0002]
[1767158022687,0.13917,88445.0,88441.0,0.01132]
[1767158022837,0.13917,88445.0,88438.0,0.01132]
[1767158023035,0.138621,88445.0,88438.0,0.01132]
[1767158028367,0.01130582,88450.0,88438.0,0.01132]
[1767158028597,0.0002,88464.0,88457.0,0.01130492]
[1767158028801,0.17430264,88478.0,88462.0,0.14701428]
[1767158029041,0.17430264,88478.0,88463.0,0.14701416]
[1767158029042,0.14986,88478.0,88463.0,0.14701416]
[1767158029201,0.14986,88483.0,88465.0,0.13571]
[1767158029405,0.14986,88483.0,88466.0,0.01132]
[1767158029753,0.14986,88483.0,88468.0,0.13571]
[1767158030176,0.0001125,88481.0,88468.0,0.13571]
[1767158031137,0.41490543,88480.0,88466.0,0.01132]
[1767158031338,0.14986,88479.0,88466.0,0.01132]
[1767158032577,0.14986,88475.0,88466.0,0.01132]
[1767158032781,0.14986,88475.0,88466.0,0.010771]
[1767158043821,0.01130211,88479.0,88466.0,0.010771]
[1767158044136,0.01141436,88481.0,88467.0,0.14338]
[1767158044339,0.0001125,88481.0,88467.0,0.14338]
[1767158044542,0.0001125,88481.0,88470.0,0.14338]
[1767158046370,5e-07,88481.0,88469.0,0.01130339]
[1767158046555,5e-07,88481.0,88470.0,0.14338]
[1767158046719,5e-07,88481.0,88470.0,0.15468326]
[1767158046922,5e-07,88481.0,88470.0,0.14338]
[1767158049126,5e-07,88481.0,88477.0,0.14338]
[1767158051027,5e-07,88481.0,88476.0,0.0226225]
[1767158051199,5e-07,88481.0,88479.0,0.14338]
[1767158052433,5e-07,88481.0,88476.0,0.01132]
[1767158053171,0.000112,88476.0,88472.0,0.01130301]
[1767158053390,0.000112,88476.0,88473.0,0.01132]
[1767158053810,5e-07,88481.0,88473.0,0.01132]
[1767158054192,5e-07,88481.0,88473.0,0.02262288]
[1767158056018,5e-07,88481.0,88474.0,0.01130275]
[1767158056689,5e-07,88481.0,88473.0,0.02262288]
[1767158059145,5e-07,88481.0,88474.0,0.01130275]
[1767158059345,5e-07,88481.0,88475.0,0.01130262]
[1767158060271,5e-07,88481.0,88474.0,0.01130275]
[1767158060474,5e-07,88481.0,88475.0,0.01130262]
[1767158063260,5e-07,88481.0,88473.0,0.01132]
[1767158063636,5e-07,88481.0,88474.0,0.01130275]
[1767158064045,5e-07,88481.0,88475.0,0.01130262]
[1767158064224,5e-07,88481.0,88474.0,0.01130275]
[1767158065375,5e-07,88481.0,88475.0,0.01130262]
[1767158065730,5e-07,88481.0,88474.0,0.01130275]
[1767158067075,5e-07,88481.0,88473.0,0.02262288]
[1767158067276,5e-07,88481.0,88474.0,0.01130275]
[1767158068286,5e-07,88481.0,88473.0,0.02262288]
[1767158068900,5e-07,88481.0,88473.0,0.01132]
[1767158069480,0.000112,88473.0,88469.0,0.02260358]
[1767158069692,0.000112,88473.0,88470.0,0.01132]
[1767158069888,0.1462305,88481.0,88470.0,0.01132]
[1767158072429,0.1462305,88481.0,88470.0,0.011208]
[1767158072953,0.15753236,88481.0,88470.0,0.011208]
[1767158074213,0.41490543,88480.0,88470.0,0.011208]
[1767158074419,0.56113543,88480.0,88470.0,0.011208]
[1767158075542,0.56103061,88480.0,88470.0,0.011208]
[1767158077055,0.57233259,88480.0,88470.0,0.011208]
[1767158077270,0.56103061,88480.0,88470.0,0.011208]
[1767158078345,0.57233259,88480.0,88470.0,0.011208]
[1767158078549,0.15753211,88479.0,88470.0,0.011208]
[1767158078880,0.14623,88479.0,88470.0,0.011208]
[1767158085727,0.15753211,88479.0,88470.0,0.011208]
[1767158086634,0.0113025,88476.0,88470.0,0.00055264]
[1767158087173,0.01130237,88477.0,88470.0,0.00055264]
[1767158087313,0.01130224,88478.0,88470.0,0.00055264]
[1767158088264,0.15753211,88479.0,88470.0,0.00055264]
[1767158089241,0.15788714,88479.0,88470.0,0.00055264]
[1767158089972,0.01130237,88477.0,88470.0,0.00055264]
[1767158090334,0.01130224,88478.0,88470.0,0.00055264]
[1767158090835,0.15425237,88477.0,88457.0,0.0001125]
[1767158091037,0.41471456,88470.0,88458.0,0.01132]
[1767158093393,0.55766456,88470.0,88458.0,0.01132]
[1767158093597,0.56896782,88470.0,88458.0,0.01132]
[1767158093742,0.55766456,88470.0,88458.0,0.01132]
[1767158095465,0.55766456,88470.0,88457.0,0.0002245]
[1767158095466,0.14295,88459.0,88457.0,9.3e-07]
[1767158095807,0.142401,88459.0,88457.0,9.3e-07]
[1767158099962,0.0113039,88465.0,88457.0,9.3e-07]
[1767158100270,0.14295,88464.0,88457.0,9.3e-07]
[1767158100432,0.0002,88467.0,88457.0,9.3e-07]
[1767158100602,0.4262182,88467.0,88457.0,9.3e-07]
[1767158100811,0.0002,88467.0,88457.0,9.3e-07]
[1767158101119,0.01150364,88467.0,88457.0,9.3e-07]
[1767158101322,0.41491456,88467.0,88457.0,9.3e-07]
[1767158105207,0.4262182,88467.0,88457.0,9.3e-07]
[1767158106038,0.5750082,88467.0,88457.0,9.3e-07]
[1767158107441,0.01130377,88466.0,88457.0,9.3e-07]
[1767158110248,0.5750082,88467.0,88457.0,9.3e-07]
[1767158110773,0.01130377,88466.0,88457.0,9.3e-07]
[1767158111342,0.5863282,88467.0,88457.0,9.3e-07]
[1767158112006,0.01130377,88466.0,88457.0,9.3e-07]
[1767158112350,0.0113039,88465.0,88457.0,9.3e-07]
[1767158112596,0.01130377,88466.0,88457.0,9.3e-07]
[1767158113058,0.01130403,88464.0,88457.0,9.3e-07]
[1767158113496,0.0113039,88465.0,88457.0,9.3e-07]
[1767158114354,0.01130403,88464.0,88457.0,9.3e-07]
[1767158114989,0.0002,88467.0,88465.0,0.13769]
[1767158115178,0.0002,88467.0,88460.0,0.13769]
[1767158115512,0.0002,88467.0,88457.0,0.13769093]
[1767158116375,0.4262182,88467.0,88458.0,0.01132]
[1767158117365,0.0002,88467.0,88458.0,0.01132]
[1767158122443,0.41471456,88470.0,88458.0,0.01132]
[1767158133157,0.05651137,88478.0,88460.0,0.41471456]
[1767158133312,0.01130237,88477.0,88470.0,0.000349]
[1767158133497,0.01130237,88477.0,88461.0,0.14922]
[1767158133696,0.14817237,88477.0,88461.0,0.14922]
[1767158134362,0.13687,88476.0,88461.0,0.14922]
[1767158134970,0.1481725,88476.0,88461.0,0.14922]
[1767158135277,0.14828407,88476.0,88461.0,0.14922]
[1767158135675,0.41471456,88471.0,88461.0,0.14922]
[1767158139779,0.13698157,88474.0,88458.0,0.16054]
[1767158140091,0.41471456,88470.0,88458.0,0.1718448]
[1767158140505,0.41471456,88470.0,88458.0,0.16054]
[1767158144446,0.14828432,88474.0,88458.0,0.16054]
[1767158145125,0.13698157,88474.0,88458.0,0.16054]
[1767158145418,0.13698157,88474.0,88458.0,0.1718448]
[1767158146387,0.14828432,88474.0,88458.0,0.16054]
[1767158146810,0.13698157,88474.0,88458.0,0.16054]
[1767158147030,0.13698157,88474.0,88458.0,0.1718448]
[1767158147160,0.14828432,88474.0,88458.0,0.16054]
[1767158147859,0.13698157,88474.0,88458.0,0.16054]
[1767158148138,0.13698157,88474.0,88458.0,0.1718448]
[1767158149597,0.14828432,88474.0,88458.0,0.16054]
[1767158149804,0.13698157,88474.0,88458.0,0.16054]
[1767158150003,0.13698157,88474.0,88458.0,0.1718448]
[1767158150277,0.13698157,88474.0,88459.0,0.01130467]
[1767158151552,0.13698157,88474.0,88458.0,0.1718448]
[1767158151696,0.13698157,88474.0,88459.0,0.01130467]
[1767158152385,0.13698157,88474.0,88458.0,0.1718448]
[1767158152873,0.13698157,88474.0,88458.0,0.16054]
[1767158153119,0.14828432,88474.0,88458.0,0.16054]
[1767158153330,0.14783,88473.0,88458.0,0.01132]
[1767158153606,0.14783,88457.0,88452.0,0.01132]
[1767158157183,0.14783,88464.0,88452.0,0.01132]
[1767158157730,0.14783,88461.0,88452.0,0.01132]
[1767158157885,0.15913441,88461.0,88452.0,0.01132]
[1767158158082,0.01130467,88459.0,88452.0,0.01132]
[1767158158301,0.01130467,88459.0,88452.0,0.01112]
[1767158158591,0.15913454,88460.0,88452.0,0.01112]
[1767158160114,0.14783,88460.0,88452.0,0.01112]
[1767158161725,0.14687,88460.0,88450.0,0.00011343]
[1767158161928,0.14687,88458.0,88450.0,3.43e-06]
[1767158162126,0.42607021,88462.0,88446.0,0.00052359]
[1767158162127,0.14687,88450.0,88446.0,0.00052359]
[1767158163242,0.14687,88450.0,88446.0,0.0006301]
[1767158168582,0.01130531,88454.0,88446.0,0.0006301]
[1767158168783,0.15817518,88455.0,88446.0,0.0006301]
[1767158170701,0.01130531,88454.0,88446.0,0.0006301]
[1767158170901,0.14687,88455.0,88446.0,0.0006301]
[1767158177147,0.15817518,88455.0,88446.0,0.0006301]
[1767158177929,0.01130556,88452.0,88446.0,0.0006301]
[1767158178115,0.05653039,88448.0,88446.0,0.0006301]
[1767158178499,0.14136,88446.0,88443.0,2.5e-06]
[1767158178971,0.14136,88449.0,88446.0,0.000549]
[1767158179320,0.42607098,88456.0,88443.0,2.5e-06]
[1767158179555,0.15266518,88455.0,88443.0,2.5e-06]
[1767158179820,0.14136,88455.0,88443.0,2.5e-06]
[1767158180347,0.15266518,88455.0,88443.0,2.5e-06]
[1767158180553,0.01132,88454.0,88443.0,2.5e-06]
[1767158182155,0.15266518,88455.0,88443.0,2.5e-06]
[1767158182359,0.01132,88454.0,88443.0,2.5e-06]
[1767158186216,0.02262531,88454.0,88443.0,2.5e-06]
[1767158186917,0.01132,88454.0,88443.0,2.5e-06]
[1767158199341,0.16398531,88454.0,88443.0,2.5e-06]
[1767158199546,0.15266543,88453.0,88443.0,2.5e-06]
[1767158200256,0.14136,88453.0,88443.0,2.5e-06]
[1767158200503,0.15266543,88453.0,88443.0,2.5e-06]
[1767158200648,0.14136,88453.0,88443.0,2.5e-06]
[1767158202075,0.15266543,88453.0,88443.0,2.5e-06]
[1767158202492,0.14136,88453.0,88443.0,2.5e-06]
[1767158203058,0.55612593,88453.0,88443.0,2.5e-06]
[1767158203795,0.14136,88453.0,88443.0,2.5e-06]
[1767158204614,0.55634637,88453.0,88443.0,2.5e-06]
[1767158206534,0.5676518,88453.0,88443.0,2.5e-06]
[1767158206846,0.55634637,88453.0,88443.0,2.5e-06]
[1767158211722,0.41498637,88453.0,88443.0,2.5e-06]
[1767158212279,0.08246649,88452.0,88443.0,2.5e-06]
[1767158212481,0.08246649,88452.0,88437.0,0.0001125]
[1767158212482,0.19476678,88438.0,88437.0,2.5e-06]
[1767158212679,0.19477125,88431.0,88430.0,5e-06]
[1767158212879,0.13823,88431.0,88430.0,5e-06]
[1767158213139,0.14953799,88433.0,88430.0,5e-06]
[1767158213327,0.13823,88433.0,88430.0,5e-06]
[1767158213747,0.14953799,88433.0,88430.0,5e-06]
[1767158214551,0.20607842,88433.0,88430.0,5e-06]
[1767158216359,0.06784842,88433.0,88430.0,5e-06]
[1767158216689,0.13823,88431.0,88430.0,5e-06]
[1767158216993,0.01132,88431.0,88430.0,5e-06]
[1767158221780,0.010771,88431.0,88430.0,5e-06]
[1767158222161,0.160661,88431.0,88430.0,5e-06]
[1767158226181,0.160661,88431.0,88423.0,0.0001125]
[1767158226182,0.05654573,88424.0,88423.0,0.0001125]
[1767158226380,0.05654573,88424.0,88416.0,0.0001125]
[1767158226381,0.06785809,88420.0,88416.0,0.0001125]
[1767158226582,0.01130965,88420.0,88416.0,0.0001125]
[1767158226787,0.01130953,88421.0,88416.0,0.0001125]
[1767158227405,0.01130953,88421.0,88416.0,0.00020492]
[1767158227948,0.01130927,88423.0,88416.0,0.00020492]
[1767158228718,0.0113094,88422.0,88416.0,0.00020492]
[1767158229150,0.01130927,88423.0,88416.0,0.00020492]
[1767158229540,0.0113094,88422.0,88416.0,0.00020492]
[1767158229848,0.01130927,88423.0,88416.0,0.00020492]
[1767158230604,0.17251914,88424.0,88416.0,0.00020492]
[1767158230805,0.01132,88424.0,88416.0,0.00020492]
[1767158231010,0.02262914,88424.0,88416.0,0.00020492]
[1767158231552,0.0113094,88422.0,88416.0,0.00020492]
[1767158231897,0.01130927,88423.0,88416.0,0.00020492]
[1767158232359,0.02262914,88424.0,88416.0,0.00020492]
[1767158232909,0.06785157,88429.0,88424.0,0.000552]
[1767158233111,0.01132,88425.0,88416.0,0.14682492]
[1767158233539,0.000552,88423.0,88416.0,0.14682492]
[1767158233747,0.01132,88425.0,88416.0,0.14682492]
[1767158237496,0.02262876,88427.0,88416.0,0.14682492]
[1767158238129,0.01130876,88427.0,88416.0,0.14682492]
[1767158238425,0.02262876,88427.0,88416.0,0.14682492]
[1767158238616,0.02258732,88427.0,88416.0,0.14682492]
[1767158241628,0.01130889,88426.0,88416.0,0.14682492]
[1767158242206,0.01130901,88425.0,88416.0,0.14682492]
[1767158243215,0.06785388,88426.0,88416.0,0.14682492]
[1767158243216,0.01130889,88426.0,88416.0,0.14682492]
[1767158243639,0.01132,88427.0,88416.0,0.14682492]
[1767158243848,0.02262876,88427.0,88416.0,0.14682492]
[1767158245436,0.06784968,88431.0,88416.0,0.14682492]
[1767158245640,0.2715992,88446.0,88430.0,0.01130837]
[1767158245841,0.03500552,88445.0,88434.0,0.0002]
[1767158246010,0.02441073,88444.0,88436.0,0.13521]
[1767158246229,0.01130607,88448.0,88436.0,0.13521]
[1767158246410,0.42630637,88450.0,88436.0,0.13521]
[1767158246813,0.01130607,88448.0,88436.0,0.13521]
[1767158247223,0.0113062,88447.0,88436.0,0.13521]
[1767158247426,0.01130607,88448.0,88436.0,0.13521]
[1767158248039,0.42630637,88450.0,88436.0,0.13521]
[1767158248223,0.41498637,88446.0,88436.0,0.13521]
[1767158249240,8.139e-05,88450.0,88436.0,0.13521]
[1767158249446,0.41498637,88446.0,88436.0,0.13521]
[1767158250478,0.41498637,88446.0,88436.0,0.134661]
[1767158250663,0.41498637,88446.0,88434.0,0.0002]
[1767158250862,0.16035595,88449.0,88434.0,0.0002]
[1767158251074,0.41498637,88444.0,88434.0,0.0002]
[1767158251372,0.01130633,88446.0,88434.0,0.0002]
[1767158251594,0.41498637,88444.0,88434.0,0.0002]
[1767158252001,0.01130633,88446.0,88434.0,0.0002]
[1767158252185,0.0113062,88447.0,88434.0,0.0002]
[1767158252525,0.01130607,88448.0,88434.0,0.0002]
[1767158254668,0.16035595,88449.0,88434.0,0.0002]
[1767158255097,0.01130607,88448.0,88434.0,0.0002]
[1767158255319,0.16035595,88449.0,88434.0,0.0002]
[1767158256354,0.01130607,88448.0,88434.0,0.0002]
[1767158256852,0.16035595,88449.0,88434.0,0.0002]
[1767158257144,0.01130607,88448.0,88434.0,0.0002]
[1767158257453,0.0113062,88447.0,88434.0,0.0002]
[1767158257647,0.01130607,88448.0,88434.0,0.0002]
[1767158258416,0.0113062,88447.0,88434.0,0.0002]
[1767158259157,0.01130633,88446.0,88434.0,0.0002]
[1767158259364,0.0113062,88447.0,88434.0,0.0002]
[1767158260375,0.16035607,88448.0,88434.0,0.0002]
[1767158261292,0.14905,88446.0,88434.0,0.0002]
[1767158268688,0.01130595,88449.0,88434.0,0.0002]
[1767158269585,1.41509909,88450.0,88434.0,0.0002]
[1767158269789,1.41509909,88450.0,88434.0,0.14616]
[1767158269990,1.42640491,88450.0,88434.0,0.14616]
[1767158271025,0.01130595,88449.0,88434.0,0.14616]
[1767158274422,0.01130607,88448.0,88434.0,0.14616]
[1767158274610,0.01130595,88449.0,88434.0,0.14616]
[1767158275420,0.01130607,88448.0,88434.0,0.14616]
[1767158278183,0.0113062,88447.0,88434.0,0.14616]
[1767158278339,0.01130607,88448.0,88434.0,0.14616]
[1767158283013,0.01130595,88449.0,88434.0,0.14616]
[1767158284576,0.01130607,88448.0,88434.0,0.14616]
[1767158284930,0.0113062,88447.0,88434.0,0.14616]
[1767158285072,0.01130607,88448.0,88434.0,0.14616]